[Event "LV Capablanca Memorial Premier 2022"]
[Site "La Habana"]
[Date "2022.04.19"]
[Round "1.1"]
[White "Hernandez Gil, Ineymig"]
[Black "Hernandez Moya, Yuleisy"]
[Result "1/2-1/2"]
[ECO "C07"]
[WhiteElo "2348"]
[BlackElo "2250"]
[Annotator "TA"]
[PlyCount "83"]
[EventDate "2022.04.20"]
[EventType "tourn"]
[EventCountry "CUB"]
[SourceTitle "playchess.com"]
[Source "ChessBase"]
[SourceQuality "1"]
[TimeControl "40/5400+30:1800+30"]

{[%evp 15,83,17,19,-7,0,-20,-22,-15,0,-23,-23,-30,-18,-50,-50,-42,-41,-55,-71,-46,-37,-42,-24,-63,-8,-29,-33,-94,-86,-75,-39,-75,-90,-190,0,0,0,-25,35,-91,0,-126,-137,-143,-137,-297,-37,-25,-28,-28,-13,-16,6,14,125,112,101,95,94,100,268,244,241,0,0,0,0,0,0,0]} 1. e4 {[%emt 0:01:14]} e6 {[%emt 0:00:13]} 2. d4 {[%emt 0:00:10]} d5 {[%emt 0:00:08]} 3. Nd2 {[%emt 0:00:11]} c5 {[%emt 0:00:23]} 4. Ngf3 {[%emt 0:00:15]} cxd4 {[%emt 0:01:50]} 5. Nxd4 {[%emt 0:00:21]} Nc6 {[%emt 0:15:00]} 6. Bb5 {[%emt 0:00:19]} Bd7 {[%emt 0:00:01]} 7. Nxc6 {[%emt 0:00:21]} Bxc6 {[%emt 0:03:37]} 8. Bxc6+ {[%emt 0:01:00]} bxc6 {[%emt 0:00:05]} 9. O-O {[%emt 0:01:21] C07: French Tarrasch: 3...c5, 4 Ngf3 and 4 exd5 Qxd5.} Nf6 {[%emt 0:01:06]} 10. Qe2 {[%emt 0:01:42]} Qc7 {[%emt 0:04:46] [#]} 11. Re1 $146 {[%emt 0:07:41]} ({Predecessor:} 11. e5 Nd7 12. Nf3 Rb8 13. Re1 Be7 14. b3 Bb4 15. Bd2 Bxd2 16. Qxd2 O-O 17. Re3 {½-½ (37) Rometti,N-Melngailis,E Buenos Aires 1939}) 11... Bc5 {[%emt 0:05:11]} 12. c4 {[%emt 0:07:18]} O-O {[%emt 0:04:06][%cal Bh8f8,Bf8e8,Be8e2,Be2a2][%mdl 32]} 13. b3 {[%emt 0:08:24]} Bb4 {[%emt 0:18:48] Black wants to play ...Nxe4.} 14. exd5 {[%emt 0:18:57]} exd5 {[%emt 0:05:54]} ({Much worse is} 14... cxd5 15. Bb2 $11) 15. Rd1 {[%emt 0:06:58]} Rfe8 {[%emt 0:06:50]} 16. Qf3 {[%emt 0:03:11]} Qe5 {[%emt 0:12:57] Inhibits Bb2.} 17. Rb1 {[%emt 0:00:23]} d4 {[%emt 0:11:24]} 18. a3 {[%emt 0:10:34]} Bc3 $36 {[%emt 0:00:54][%mdl 2048] Black is pushing.} 19. Nf1 {[%emt 0:03:30]} Qe2 {[%emt 0:02:42]} (19... c5 $15) 20. Qxe2 {[%emt 0:02:29]} Rxe2 {[%emt 0:00:02]} 21. Ng3 {[%emt 0:02:45]} (21. f3 $1 $15) 21... Ra2 $17 {[%emt 0:00:24]} 22. f3 {[%emt 0:02:20]} h6 {[%emt 0:01:43]} (22... Re8 {keeps more tension.} 23. Kf1 h5 24. Bg5 Nh7) 23. b4 {[%emt 0:07:40]} Re8 {[%emt 0:00:07]} 24. h3 {[%emt 0:03:30]} (24. Bf4 $17) 24... Re1+ $2 {[%emt 0:02:21]} (24... g5 $19 {Hoping for ...Kh7.} 25. Kh2 (25. Nf5 $2 Ree2 $19) 25... Kh7) 25. Rxe1 $11 {[%emt 0:00:32]} Bxe1 {[%emt 0:00:02]} 26. Bf4 {[%emt 0:02:11]} Bc3 {[%emt 0:01:29]} (26... Bf2+ $11 27. Kf1 g5) 27. Rb3 {[%emt 0:03:24]} (27. Nf5 $14 {keeps the upper hand.}) 27... g5 {[%emt 0:01:01]} ({Black should play} 27... Kh7 $1 $17) 28. Be5 {[%emt 0:03:12]} (28. Bb8 $1 $11) 28... Nd7 {[%emt 0:00:09]} 29. Bc7 {[%emt 0:00:26]} Ra1+ {[%emt 0:01:04]} 30. Kf2 $2 {[%emt 0:01:34] [#]} (30. Kh2 $17 {only move.}) 30... d3 $1 {[%emt 0:00:22]} 31. Ne4 $15 {[%emt 0:00:46]} Bd4+ {[%emt 0:00:47]} 32. Kg3 {[%emt 0:00:06]} Rd1 {[%emt 0:00:16] White must now prevent ...f5.} 33. Nf2 $1 {[%emt 0:00:47]} Bxf2+ {[%emt 0:00:43]} 34. Kxf2 {[%emt 0:00:02]} Nb6 {[%emt 0:00:29]} (34... f5 $1 $11 {keeps the balance.}) 35. Bxb6 $16 {[%emt 0:00:23]} axb6 {[%emt 0:00:01][%mdl 4096] Endgame KR-KR} 36. Ke3 {[%emt 0:00:27]} d2 {[%emt 0:00:30]} 37. Rd3 {[%emt 0:01:48]} Rc1 $2 {[%emt 0:00:12]} (37... Kf8 $16) 38. Kxd2 $18 {[%emt 0:00:18]} ({Worse is} 38. Rxd2 Rxc4 39. Ra2 b5 $11) 38... Rxc4 {[%emt 0:00:08] [#]} 39. Rd6 $2 {[%emt 0:00:52]} (39. Rc3 $1 $18 {[%cal Rc3c4]} Rxc3 40. Kxc3) 39... Kg7 $11 {[%emt 0:00:16] The position is equal.} 40. Rd7 {[%emt 0:00:00]} h5 {[%emt 0:00:00]} 41. Rd6 {[%emt 0:04:14]} f6 {[%emt 0:03:29]} 42. Rd7+ {[%emt 0:06:24] Quite a comeback for White.  Weighted Error Value: White=0.29 (precise) /Black=0.40} 1/2-1/2

[Event "LV Capablanca Memorial Premier 2022"]
[Site "La Habana"]
[Date "2022.04.19"]
[Round "1.2"]
[White "Bulmaga, Irina"]
[Black "Forgas Moreno, Yaniela"]
[Result "1-0"]
[ECO "B07"]
[WhiteElo "2390"]
[BlackElo "2303"]
[Annotator "TA"]
[PlyCount "85"]
[EventDate "2022.04.20"]
[EventType "tourn"]
[EventCountry "CUB"]
[SourceTitle "playchess.com"]
[Source "ChessBase"]
[SourceQuality "1"]
[TimeControl "40/5400+30:1800+30"]

{[%evp 14,85,82,81,80,69,81,83,93,95,93,95,113,102,104,104,122,141,134,126,133,125,126,124,123,72,72,60,112,110,105,113,137,131,125,73,94,94,92,80,79,79,122,121,129,120,134,122,122,121,121,122,230,223,220,191,183,170,166,164,205,116,268,260,442,427,636,621,800,731,1461,889,2829,2675]} 1. e4 {[%emt 0:00:07]} c5 {[%emt 0:00:15]} 2. c3 {[%emt 0:00:06]} d6 {[%emt 0:00:18]} 3. d4 {[%emt 0:00:08]} Nf6 {[%emt 0:00:36]} 4. Bd3 {[%emt 0:00:22]} Nc6 {[%emt 0:00:22]} 5. Nf3 {[%emt 0:00:18]} g6 {[%emt 0:00:47]} 6. d5 {[%emt 0:00:21]} Nb8 {[%emt 0:00:16]} 7. h3 {[%emt 0:00:30]} Bg7 {[%emt 0:01:01]} 8. O-O {[%emt 0:00:10]} O-O {[%emt 0:00:41] B07: Pirc Defence: Miscellaneous Systems.} 9. Re1 {[%emt 0:00:07]} Re8 {[%emt 0:05:02]} 10. c4 {[%emt 0:04:03]} e5 {[%emt 0:01:59] White is better.} 11. Nc3 {[%emt 0:00:55]} Nh5 {[%emt 0:05:04]} 12. Bg5 {[%emt 0:04:48] [#]} f6 $146 {[%emt 0:07:22]} ({Predecessor:} 12... Bf6 13. Be3 Na6 14. a3 Nf4 15. Bc2 Kh8 16. Rb1 g5 17. Nh2 Rg8 18. Ne2 Nxe2+ 19. Qxe2 {1-0 (46) Magem Badals,J (2535)-Dorfman,J (2600) France 1998}) 13. Be3 {[%emt 0:05:28]} Nf4 {[%emt 0:02:50]} 14. Bf1 {[%emt 0:00:22]} f5 {[%emt 0:07:39]} 15. exf5 {[%emt 0:08:22]} Bxf5 {[%emt 0:10:10]} 16. g4 {[%emt 0:20:05]} Bc8 {[%emt 0:06:23]} 17. Bxf4 {[%emt 0:06:05]} exf4 {[%emt 0:00:17]} 18. Rxe8+ {[%emt 0:00:20]} Qxe8 {[%emt 0:00:05] [#]} 19. Qd2 {[%emt 0:02:29]} (19. Nb5 $142 $1 {[%cal Rb5c7] aiming for Nc7.} Qd8 20. Qe2) 19... Qf8 $16 {[%emt 0:04:33]} 20. Nb5 {[%emt 0:04:10] Pair of Knights!} Na6 {[%emt 0:01:08] Prevents Nc7.} (20... Nd7 $14) 21. Re1 {[%emt 0:06:02]} Bd7 {[%emt 0:03:50]} 22. Re4 $36 {[%emt 0:02:05][%mdl 2048] Keeping Black busy.} Bxb5 {[%emt 0:06:01]} 23. cxb5 {[%emt 0:00:13]} (23. Rxf4 $6 Qe7 24. cxb5 Nc7 $14) 23... Nc7 {[%emt 0:00:10]} 24. Ng5 {[%emt 0:07:57]} (24. Rxf4 Qe7 $14) (24. b4 $142) 24... Qf6 {[%emt 0:20:26]} 25. Ne6 {[%emt 0:01:14]} Nxe6 {[%emt 0:02:19]} 26. dxe6 {[%emt 0:00:27]} Qe7 {[%emt 0:00:19]} 27. b4 {[%emt 0:13:05]} ({Don't play} 27. Qxf4 Bxb2 28. Qd2 Bd4 $11) 27... g5 {[%emt 0:05:14]} 28. bxc5 {[%emt 0:01:05]} dxc5 {[%emt 0:00:10]} 29. Qd5 {[%emt 0:02:57]} Bf6 {[%emt 0:03:30]} 30. Bc4 {[%emt 0:01:54] &Bianco is much more active.} Kg7 {[%emt 0:01:33]} 31. h4 {[%emt 0:03:12]} Rd8 {[%emt 0:03:06]} 32. Qf5 {[%emt 0:00:03]} Rd4 {[%emt 0:00:51]} (32... b6 $16) 33. hxg5 $18 {[%emt 0:01:43]} Bxg5 {[%emt 0:00:17]} 34. Qe5+ {[%emt 0:01:21]} Bf6 {[%emt 0:01:02]} 35. Qxf4 {[%emt 0:00:21]} Rxe4 {[%emt 0:00:32]} 36. Qxe4 {[%emt 0:00:03]} Bd4 {[%emt 0:00:42]} 37. Kg2 {[%emt 0:00:35]} (37. Kf1 $18) 37... Kf8 $2 {[%emt 0:00:33] This move loses the game for Black.} (37... h5 $16 38. f4 (38. gxh5 Qg5+ 39. Kf3 Qxh5+ 40. Qg4+ Qxg4+ 41. Kxg4 Kf8 $16) 38... hxg4) 38. Kg3 {[%emt 0:00:31] Qf4+ is the strong threat.} Ke8 $2 {[%emt 0:01:27]} (38... h6 39. f4 b6 40. Qf5+ Kg7) 39. f4 {[%emt 0:01:01] White is clearly winning.} Kd8 {[%emt 0:00:25]} (39... Bc3 $142 40. Bd5 Bf6 41. Bxb7 h6) 40. g5 {[%emt 0:00:00]} Kc7 {[%emt 0:00:00]} 41. Kg4 {[%emt 0:03:17] [#] Strongly threatening f5.} Kd8 {[%emt 0:05:37]} 42. Bd5 {[%emt 0:02:47]} Qg7 {[%emt 0:08:57]} 43. Bxb7 {[%emt 0:01:44] Weighted Error Value: White=0.10 (very precise) /Black=0.37} 1-0

[Event "LV Capablanca Memorial Premier 2022"]
[Site "La Habana"]
[Date "2022.04.19"]
[Round "1.3"]
[White "Cori Tello, Deysi"]
[Black "Kiolbasa, Oliwia"]
[Result "1-0"]
[ECO "A17"]
[WhiteElo "2391"]
[BlackElo "2388"]
[Annotator "TA"]
[PlyCount "59"]
[EventDate "2022.04.20"]
[EventType "tourn"]
[EventCountry "CUB"]
[SourceTitle "playchess.com"]
[Source "ChessBase"]
[SourceQuality "1"]
[TimeControl "40/5400+30:1800+30"]

{[%evp 9,59,8,20,18,22,0,0,0,12,0,0,-20,-13,-82,-77,-72,-71,-69,0,0,0,0,0,0,21,-106,-86,-104,-26,-30,18,16,33,15,67,65,53,66,47,0,0,0,92,100,160,161,481,471,445,456,441,416]} 1. c4 {[%emt 0:03:33]} e6 {[%emt 0:00:44]} 2. Nc3 {[%emt 0:00:30]} d5 {[%emt 0:00:24]} 3. e3 {[%emt 0:00:38]} Nf6 {[%emt 0:02:07]} 4. Nf3 {[%emt 0:01:05]} Nbd7 {[%emt 0:01:15]} 5. b3 {[%emt 0:01:34]} a6 {[%emt 0:06:09]} 6. Bb2 {[%emt 0:01:26] A17: English Opening: 1...Nf6 with ...Bb4.} Bd6 {[%emt 0:01:27]} 7. Qc2 {[%emt 0:03:33]} O-O {[%emt 0:04:19]} 8. Be2 {[%emt 0:02:20] The position is equal.} Re8 {[%emt 0:11:45] [#]} 9. Rd1 $146 {[%emt 0:04:31]} ({Predecessor:} 9. h4 Nf8 10. O-O-O c6 11. a4 Bd7 12. Rdg1 e5 13. cxd5 cxd5 14. Nxd5 Nxd5 15. Bc4 Bc6 16. h5 Nb4 17. Qf5 Qf6 18. Qxf6 gxf6 19. g4 Bxf3 {0-1 (19) Galvan Lube,C-Abdul Malek,O Vitoria 2001}) 9... b6 {[%emt 0:30:28]} 10. cxd5 {[%emt 0:09:39]} exd5 {[%emt 0:00:34]} 11. g4 {[%emt 0:00:53]} (11. d4 $11 {remains equal.}) 11... Bb7 $17 {[%emt 0:02:23][%cal Od5d4] aiming for ...d4!} 12. Rg1 {[%emt 0:03:17]} d4 {[%emt 0:03:26]} 13. g5 {[%emt 0:00:44]} dxc3 {[%emt 0:18:47]} ({Better is} 13... Bxf3 $15 14. Bxf3 Ne5) 14. gxf6 $11 {[%emt 0:00:29]} Qxf6 {[%emt 0:01:52]} (14... cxb2 15. Rxg7+ Kf8 16. Rxf7+ $3 {[%mdl 512]} Kxf7 17. Qxh7+ Kxf6 18. Qh6+ Kf7 19. Bc4+) 15. Bxc3 {[%emt 0:01:44]} Ne5 $1 {[%emt 0:00:19]} 16. Ng5 {[%emt 0:11:48]} Qg6 {[%emt 0:03:39]} 17. Qb2 {[%emt 0:08:18]} (17. Rc1 $11) 17... h6 {[%emt 0:05:08]} 18. d4 {[%emt 0:01:45][%cal Bd2d4,Bd4d5][%mdl 32] [#]} Nd7 {[%emt 0:01:34]} (18... hxg5 $6 19. dxe5 Be7 20. h4 $15) (18... Nc4 $1 $17 {[%cal Rc4b2][%mdl 512]} 19. bxc4 Bxh2) 19. Nf3 {[%emt 0:01:51]} Qf5 {[%emt 0:00:16]} (19... Qf6 $142 20. d5 Bb4 $1) 20. d5 $1 {[%emt 0:00:50]} Ne5 $1 {[%emt 0:00:57]} 21. Nxe5 {[%emt 0:13:32]} Bxe5 {[%emt 0:00:04]} (21... Rxe5 $11 22. Bg4 Qg5) 22. f4 $14 {[%emt 0:00:08]} Bxc3+ {[%emt 0:00:45]} 23. Qxc3 {[%emt 0:00:03][%csl Gg1][%cal Rc3g7]} g6 {[%emt 0:00:16]} 24. Kf2 {[%emt 0:00:02]} ({Don't play} 24. Qxc7 Rxe3 $1 25. Qxb7 Rae8 26. Qxa6 (26. Rg2 Qe4 27. Kd2 Qxg2 28. Qc7 Qxe2+ 29. Kc1 Qxa2 30. Rd2 Re1+ 31. Rd1 Qa1+ 32. Kc2 Qxd1+ 33. Kc3 R8e3+ 34. Kc4 Qxb3+ 35. Kd4 Re4#) 26... Rxe2+ 27. Qxe2 Rxe2+ 28. Kxe2 Qe4+ 29. Kf2 Qxf4+ 30. Kg2 Qe4+ 31. Kf2 Qf4+ 32. Kg2 Qe4+ 33. Kg3 Qe3+ 34. Kg2 Qe2+ 35. Kg3 Qe3+ 36. Kg2 Qe2+ 37. Kg3 Qe3+ $17) (24. Rg3 $1 $14 {should be considered.}) 24... Qh3 $11 {[%emt 0:01:50][%cal Oc7c6]} (24... Bxd5 $2 25. Bg4 Qe4 26. Rd4 $18) 25. Bf3 {[%emt 0:06:22]} Rad8 {[%emt 0:00:49] [#]} ({Resist} 25... Qxh2+ 26. Rg2 Qh4+ 27. Rg3 $16) (25... Qh4+ $1 $11 {keeps the balance.} 26. Rg3 Re7) 26. Rg3 $1 $36 {[%emt 0:05:42][%mdl 2048] Black is under strong pressure. Really sharp!} Qxh2+ {[%emt 0:00:13] [#]} ({Black should play} 26... Qh4) 27. Bg2 $1 {[%emt 0:00:07] &Bianco is more active.} Bxd5 $2 {[%emt 0:01:51]} (27... Rxd5 {is more resistant.} 28. Rh1 Rc5 29. Rxh2 Rxc3 30. Bxb7 Kg7) 28. Rh1 $18 {[%emt 0:00:35] White is clearly winning.} Qxh1 {[%emt 0:00:29]} 29. Bxh1 {[%emt 0:00:04]} Bxh1 {[%emt 0:00:04]} 30. Rh3 {[%emt 0:00:23] Weighted Error Value: White=0.19 (very precise) /Black=0.32} 1-0

[Event "LV Capablanca Memorial Premier 2022"]
[Site "La Habana"]
[Date "2022.04.19"]
[Round "1.4"]
[White "Miranda Llanes, Yerisbel"]
[Black "Ordaz Valdes, Lisandra Teresa"]
[Result "1/2-1/2"]
[ECO "E46"]
[WhiteElo "2261"]
[BlackElo "2371"]
[Annotator "TA"]
[PlyCount "57"]
[EventDate "2022.04.20"]
[EventType "tourn"]
[EventCountry "CUB"]
[SourceTitle "playchess.com"]
[Source "ChessBase"]
[SourceQuality "1"]
[TimeControl "40/5400+30:1800+30"]

{[%evp 9,57,-1,0,1,0,11,8,14,-1,0,0,0,0,0,16,14,20,9,25,25,33,20,38,0,0,0,7,0,0,0,8,-15,-14,-25,0,-41,-37,-45,-56,-65,-24,-83,-59,-102,-54,-170,0,-99,0,-173]} 1. d4 {[%emt 0:00:22]} Nf6 {[%emt 0:01:00]} 2. c4 {[%emt 0:00:18]} e6 {[%emt 0:00:03]} 3. Nc3 {[%emt 0:00:08]} Bb4 {[%emt 0:00:04]} 4. e3 {[%emt 0:00:24]} O-O {[%emt 0:00:20]} 5. Bd2 {[%emt 0:00:25]} c5 {[%emt 0:01:16]} 6. a3 {[%emt 0:00:38] E46: Nimzo-Indian: Rubinstein: 4 e3 0-0 5 Ne2 without early Bd3.} Bxc3 {[%emt 0:00:00]} 7. Bxc3 {[%emt 0:00:11]} Ne4 {[%emt 0:00:00]} 8. Ne2 {[%emt 0:06:07]} b6 {[%emt 0:01:08]} 9. d5 {[%emt 0:00:15]} Bb7 {[%emt 0:00:17]} ({Don't play} 9... Qh4 10. g3 Qh5 11. Bg2 exd5 12. Qc2 $14 (12. cxd5 f5 $14) (12. Qxd5 Qxd5 13. cxd5 Re8 $14)) 10. Qd3 {[%emt 0:02:14]} exd5 {[%emt 0:26:12]} 11. cxd5 {[%emt 0:00:28]} Re8 {[%emt 0:00:12]} 12. Ng3 {[%emt 0:12:14] [#]} Nxc3 $146 {[%emt 0:09:06]} (12... Ba6 {is interesting.} 13. Qc2 Nxc3 14. Bxa6 Nxa6 15. bxc3 Nc7) ({Predecessor:} 12... Ba6 13. Qc2 Nxc3 14. Bxa6 Nxa6 15. bxc3 d6 16. O-O b5 17. c4 bxc4 18. Qxc4 Nc7 {½-½ (39) Sandipan,C (2543)-Redzisz,M (2257) Tegernsee 2021}) 13. bxc3 {[%emt 0:01:08]} d6 {[%emt 0:04:28]} 14. Be2 {[%emt 0:02:01]} Nd7 {[%emt 0:04:09]} 15. O-O {[%emt 0:03:58]} g6 {[%emt 0:05:32]} 16. f4 {[%emt 0:09:18]} c4 {[%emt 0:10:27]} 17. Qd4 {[%emt 0:04:45]} b5 {[%emt 0:08:38]} 18. Rab1 {[%emt 0:16:46]} Qb6 {[%emt 0:07:10]} 19. e4 {[%emt 0:05:42][%cal Oa3a4]} Ba6 {[%emt 0:00:29]} 20. Bf3 {[%emt 0:06:02]} Rab8 {[%emt 0:03:57]} 21. h4 {[%emt 0:05:46]} h5 {[%emt 0:06:41]} 22. Kh2 {[%emt 0:03:55]} Qd8 {[%emt 0:00:03]} ({Reject} 22... Qxd4 23. cxd4 Rb6 24. e5 $14) 23. Kh3 {[%emt 0:00:01][%cal Of3h5]} Bc8 {[%emt 0:00:25]} 24. f5 {[%emt 0:00:02][%cal Oa3a4]} Qf6 {[%emt 0:07:00]} 25. Qd2 {[%emt 0:05:08]} (25. Qxf6 $1 $11 Nxf6 26. a4) 25... Nc5 {[%emt 0:10:54][%cal Rg6f5]} 26. Qf4 {[%emt 0:05:31]} Nd3 {[%emt 0:00:00]} (26... Qxc3 $6 27. Qxd6 Nb3 28. Kh2 $15) ({Better is} 26... Kg7 $17) 27. Qd2 ({White should try} 27. Qg5 $1 $15 Qxg5 28. hxg5) 27... Nc5 (27... gxf5 $19 28. exf5 Bxf5+ 29. Nxf5 Qxf5+ 30. Kh2 Qg6) 28. Qf4 $17 {[%emt 0:01:00]} Nd3 {[%emt 0:00:00]} ({Much weaker is} 28... Qxc3 $6 29. Qxd6 Nb3 30. Kh2 $15) (28... Kg7 $17) 29. Qd2 $1 {Weighted Error Value: White=0.16 (very precise) /Black=0.19 (very precise)} 1/2-1/2

[Event "LV Capablanca Memorial Premier 2022"]
[Site "La Habana"]
[Date "2022.04.19"]
[Round "1.5"]
[White "Lujan, Carolina"]
[Black "Arribas Robaina, Maritza"]
[Result "1/2-1/2"]
[ECO "C54"]
[WhiteElo "2334"]
[BlackElo "2204"]
[Annotator "TA"]
[PlyCount "63"]
[EventDate "2022.04.20"]
[EventType "tourn"]
[EventCountry "CUB"]
[SourceTitle "playchess.com"]
[Source "ChessBase"]
[SourceQuality "1"]
[TimeControl "40/5400+30:1800+30"]

{[%evp 13,63,31,48,15,25,17,22,28,8,12,18,19,20,14,11,11,25,8,5,22,17,9,20,13,13,12,38,38,47,27,28,27,39,10,14,-30,-30,-30,0,0,0,0,0,-13,0,0,0,0,0,-8,-8,-9]} 1. e4 {[%emt 0:00:17]} e5 {[%emt 0:00:05]} 2. Nf3 {[%emt 0:00:16]} Nc6 {[%emt 0:00:11]} 3. Bc4 {[%emt 0:00:23]} Bc5 {[%emt 0:00:33]} 4. c3 {[%emt 0:01:06]} Nf6 {[%emt 0:01:03]} 5. d3 {[%emt 0:00:09]} O-O {[%emt 0:01:54]} 6. O-O {[%emt 0:00:06]} d5 {[%emt 0:01:46]} 7. exd5 {[%emt 0:00:06]} Nxd5 {[%emt 0:00:05]} 8. a4 {[%emt 0:00:10] C54: Giuoco Piano: 4 c3 Nf6, main lines with 5 d4 and 5 d3.} (8. Re1 $5 {[%cal Rb2b4]}) 8... a5 {[%emt 0:01:19]} 9. Re1 {[%emt 0:04:17]} Bg4 {[%emt 0:01:16]} 10. Nbd2 {[%emt 0:16:25][%cal Bb1d2,Bd2e4,Be4g3][%mdl 32]} Nb6 {[%emt 0:27:23]} 11. Bb5 {[%emt 0:07:38]} f6 {[%emt 0:06:18]} 12. Ne4 {[%emt 0:12:21]} Be7 {[%emt 0:01:53]} 13. h3 {[%emt 0:10:23]} Bh5 {[%emt 0:03:06]} 14. Ng3 {[%emt 0:02:28]} Bf7 {[%emt 0:03:17]} 15. d4 {[%emt 0:06:48]} exd4 $1 {[%emt 0:04:26]} 16. Bxc6 {[%emt 0:01:10]} bxc6 {[%emt 0:00:19]} 17. Nxd4 {[%emt 0:00:15]} Bc5 {[%emt 0:01:07]} 18. Qg4 {[%emt 0:10:58] [#] Strongly threatening Bh6.} Bxd4 {[%emt 0:04:55]} 19. cxd4 {[%emt 0:00:06] [#]} Re8 $146 {[%emt 0:01:19]} ({Predecessor:} 19... Nd5 20. Bd2 Qc8 21. Qf3 Qd7 22. Ne4 Nb6 23. Qg4 Qxg4 24. hxg4 Nc4 25. Bc3 Rfb8 {1-0 (32) Quesada Perez,Y (2627)-Bora,S (2370) Chess.com INT 2018}) 20. Bd2 {[%emt 0:06:00]} Qd7 {[%emt 0:05:31]} 21. Qxd7 {[%emt 0:06:30]} Nxd7 {[%emt 0:00:08]} 22. Rxe8+ {[%emt 0:00:30]} Bxe8 {[%emt 0:00:49]} 23. Re1 {[%emt 0:00:29]} Nb6 {[%emt 0:06:28]} 24. b4 {[%emt 0:08:32]} axb4 {[%emt 0:02:28]} 25. Bxb4 {[%emt 0:00:14]} Nd5 {[%emt 0:00:45]} 26. Bd2 {[%emt 0:03:35] The position is equal.} c5 $1 {[%emt 0:00:20]} 27. dxc5 {[%emt 0:00:35]} Bxa4 {[%emt 0:00:08]} 28. Nf5 {[%emt 0:00:57]} Re8 {[%emt 0:01:20]} 29. Rxe8+ {[%emt 0:00:30]} Bxe8 {[%emt 0:00:07]} 30. Ba5 {[%emt 0:00:55]} Bd7 {[%emt 0:01:57]} 31. Ne3 {[%emt 0:00:46]} Nxe3 {[%emt 0:00:13]} 32. fxe3 {[%emt 0:00:07] Weighted Error Value: White=0.07 (flawless) /Black=0.04 (flawless)} 1/2-1/2